{"text_format":"3","workbook":"xlsx","n_sheets":1,"sheets":["Propunere"],"not_rendered":{"images":1,"defined_names":20},"read":"whole","date_system":"1900"}

{"sheet":"Propunere","index":0,"n_rows":39,"n_cols":7,"rows_kept":39,"merged":[[0,1,3,1],[0,3,0,6],[1,4,1,6],[2,4,2,6],[32,3,35,4],[36,3,36,6],[37,3,37,5],[38,3,38,5]]}
[{"$nulls":3},"PROPUNERE DE CONSTRUCȚIE"]
[{"$nulls":3},"Numele firmei","| Introduceți adresa poștală a firmei în această celulă"]
[{"$nulls":3},"Telefon","| Introduceți numărul de fax al firmei și adresa de e-mail a persoanei de contact în această celulă"]
[{"$nulls":3},"CANTITATE","DESCRIERE","PREȚ UNITAR","SUMĂ"]
[null,"CLIENT",null,10,"Articolul 1",{"v":165,"d":"165.00 lei"},{"$f":"IFERROR(ElementeLinie[[#This Row],[CANTITATE]]*ElementeLinie[[#This Row],[PREȚ UNITAR]], \"\")","v":{"v":1650,"d":"1,650.00 lei"}}]
[null,"Introduceți numele clientului în această celulă",null,21,"Articolul 2",{"v":40,"d":"40.00 lei"},{"$f":"IFERROR(ElementeLinie[[#This Row],[CANTITATE]]*ElementeLinie[[#This Row],[PREȚ UNITAR]], \"\")","v":{"v":840,"d":"840.00 lei"}}]
[null,"NR. ESTIMATIV",null,5,"Articolul 3",{"v":10.5,"d":"10.50 lei"},{"$f":"IFERROR(ElementeLinie[[#This Row],[CANTITATE]]*ElementeLinie[[#This Row],[PREȚ UNITAR]], \"\")","v":{"v":52.5,"d":"52.50 lei"}}]
[null,"C-1234",null,164,"Articolul 4",{"v":2.75,"d":"2.75 lei"},{"$f":"IFERROR(ElementeLinie[[#This Row],[CANTITATE]]*ElementeLinie[[#This Row],[PREȚ UNITAR]], \"\")","v":{"v":451,"d":"451.00 lei"}}]
[null,"DATA",null,6,"Articolul 5",{"v":12,"d":"12.00 lei"},{"$f":"IFERROR(ElementeLinie[[#This Row],[CANTITATE]]*ElementeLinie[[#This Row],[PREȚ UNITAR]], \"\")","v":{"v":72,"d":"72.00 lei"}}]
[null,{"$f":"TODAY()","v":"2018-11-15"},null,18,"Articolul 6",{"v":5.5,"d":"5.50 lei"},{"$f":"IFERROR(ElementeLinie[[#This Row],[CANTITATE]]*ElementeLinie[[#This Row],[PREȚ UNITAR]], \"\")","v":{"v":99,"d":"99.00 lei"}}]
[null,"ADRESĂ",null,1,"Articolul 7",{"v":25,"d":"25.00 lei"},{"$f":"IFERROR(ElementeLinie[[#This Row],[CANTITATE]]*ElementeLinie[[#This Row],[PREȚ UNITAR]], \"\")","v":{"v":25,"d":"25.00 lei"}}]
[null,"Introduceți adresa poștală a clientului în această celulă",{"$nulls":4},{"$f":"IFERROR(ElementeLinie[[#This Row],[CANTITATE]]*ElementeLinie[[#This Row],[PREȚ UNITAR]], \"\")","v":{"v":0,"d":"0.00 lei"}}]
[null,"LOCALITATE/JUDEȚ/COD POȘTAL",{"$nulls":4},{"$f":"IFERROR(ElementeLinie[[#This Row],[CANTITATE]]*ElementeLinie[[#This Row],[PREȚ UNITAR]], \"\")","v":{"v":0,"d":"0.00 lei"}}]
[null,"Introduceți localitatea, județul și codul poștal al clientului în această celulă",{"$nulls":4},{"$f":"IFERROR(ElementeLinie[[#This Row],[CANTITATE]]*ElementeLinie[[#This Row],[PREȚ UNITAR]], \"\")","v":{"v":0,"d":"0.00 lei"}}]
[null,"TELEFON",{"$nulls":4},{"$f":"IFERROR(ElementeLinie[[#This Row],[CANTITATE]]*ElementeLinie[[#This Row],[PREȚ UNITAR]], \"\")","v":{"v":0,"d":"0.00 lei"}}]
[null,"Introduceți numărul de telefon al clientului în această celulă",{"$nulls":4},{"$f":"IFERROR(ElementeLinie[[#This Row],[CANTITATE]]*ElementeLinie[[#This Row],[PREȚ UNITAR]], \"\")","v":{"v":0,"d":"0.00 lei"}}]
[null,"E-MAIL",{"$nulls":4},{"$f":"IFERROR(ElementeLinie[[#This Row],[CANTITATE]]*ElementeLinie[[#This Row],[PREȚ UNITAR]], \"\")","v":{"v":0,"d":"0.00 lei"}}]
[null,"Introduceți adresa de e-mail a clientului în această celulă",{"$nulls":4},{"$f":"IFERROR(ElementeLinie[[#This Row],[CANTITATE]]*ElementeLinie[[#This Row],[PREȚ UNITAR]], \"\")","v":{"v":0,"d":"0.00 lei"}}]
[null,"AGENT DE VÂNZĂRI",{"$nulls":4},{"$f":"IFERROR(ElementeLinie[[#This Row],[CANTITATE]]*ElementeLinie[[#This Row],[PREȚ UNITAR]], \"\")","v":{"v":0,"d":"0.00 lei"}}]
[null,"Introduceți agentul de vânzări în această celulă",{"$nulls":4},{"$f":"IFERROR(ElementeLinie[[#This Row],[CANTITATE]]*ElementeLinie[[#This Row],[PREȚ UNITAR]], \"\")","v":{"v":0,"d":"0.00 lei"}}]
[null,"PROIECT",{"$nulls":4},{"$f":"IFERROR(ElementeLinie[[#This Row],[CANTITATE]]*ElementeLinie[[#This Row],[PREȚ UNITAR]], \"\")","v":{"v":0,"d":"0.00 lei"}}]
[null,"Introduceți numele proiectului în această celulă",{"$nulls":4},{"$f":"IFERROR(ElementeLinie[[#This Row],[CANTITATE]]*ElementeLinie[[#This Row],[PREȚ UNITAR]], \"\")","v":{"v":0,"d":"0.00 lei"}}]
[null,"PREGĂTIT DE:",{"$nulls":4},{"$f":"IFERROR(ElementeLinie[[#This Row],[CANTITATE]]*ElementeLinie[[#This Row],[PREȚ UNITAR]], \"\")","v":{"v":0,"d":"0.00 lei"}}]
[null,"Introduceți numele autorului în această celulă",{"$nulls":4},{"$f":"IFERROR(ElementeLinie[[#This Row],[CANTITATE]]*ElementeLinie[[#This Row],[PREȚ UNITAR]], \"\")","v":{"v":0,"d":"0.00 lei"}}]
[null,"ATENȚIE",{"$nulls":4},{"$f":"IFERROR(ElementeLinie[[#This Row],[CANTITATE]]*ElementeLinie[[#This Row],[PREȚ UNITAR]], \"\")","v":{"v":0,"d":"0.00 lei"}}]
[null,"Introduceți numele persoanei căreia îi este adresată propunerea în această celulă",{"$nulls":4},{"$f":"IFERROR(ElementeLinie[[#This Row],[CANTITATE]]*ElementeLinie[[#This Row],[PREȚ UNITAR]], \"\")","v":{"v":0,"d":"0.00 lei"}}]
[null,"CONDIȚII DE PLATĂ",{"$nulls":4},{"$f":"IFERROR(ElementeLinie[[#This Row],[CANTITATE]]*ElementeLinie[[#This Row],[PREȚ UNITAR]], \"\")","v":{"v":0,"d":"0.00 lei"}}]
[null,"Net 30",{"$nulls":4},{"$f":"IFERROR(ElementeLinie[[#This Row],[CANTITATE]]*ElementeLinie[[#This Row],[PREȚ UNITAR]], \"\")","v":{"v":0,"d":"0.00 lei"}}]
[null,"DATA SCADENȚEI",{"$nulls":4},{"$f":"IFERROR(ElementeLinie[[#This Row],[CANTITATE]]*ElementeLinie[[#This Row],[PREȚ UNITAR]], \"\")","v":{"v":0,"d":"0.00 lei"}}]
[null,{"$f":"TODAY()+30","v":"2018-12-15"},{"$nulls":4},{"$f":"IFERROR(ElementeLinie[[#This Row],[CANTITATE]]*ElementeLinie[[#This Row],[PREȚ UNITAR]], \"\")","v":{"v":0,"d":"0.00 lei"}}]
[{"$nulls":5},"SUBTOTAL",{"$f":"SUBTOTAL(109,ElementeLinie[SUMĂ])","v":{"v":3189.5,"d":"3,189.50 lei"}}]
[{"$nulls":3},"ACEASTĂ PROPUNERE INCLUDE URMĂTOARELE CONDIȚII:",null,"Cota TVA ",{"v":0.0775,"d":"7.75%"}]
[{"$nulls":3},"Introduceți condițiile aici",null,"TVA ",{"$f":"IFERROR(Subtotal*CotaTVA, \"\")","v":{"v":247.18625,"d":"247.19 lei"}}]
[{"$nulls":5},"ALTELE "]
[{"$nulls":5},"TOTAL ",{"$f":"IFERROR(Subtotal+G33+Altele, \"\")","v":{"v":3436.68625,"d":"3,436.69 lei"}}]
[]
[{"$nulls":3},"Semnați mai jos pentru a accepta oferta:"]
[]
[{"$nulls":3},"Repr. autorizat",null,null,"Dată"]